bitfinex/quotes_ETHUSD_20241030
["timestamp","ask_amount","ask_price","bid_price","bid_amount"]
[1730253623763,1.50499957,2624.7,2624.5,0.39784089]
[1730253624498,0.08687075,2624.6,2624.5,0.39784089]
[1730253625192,4.57063,2625.0,2624.5,4.70735398]
[1730253625402,0.08687075,2624.6,2624.5,4.70735398]
[1730253625571,4.57063,2625.0,2624.5,4.70735398]
[1730253625911,4.57063,2625.0,2624.5,4.48866966]
[1730253626105,0.08687075,2624.9,2624.5,4.48866966]
[1730253626267,0.08687075,2624.9,2624.5,4.48865808]
[1730253627504,0.08687075,2624.9,2624.5,4.20808089]
[1730253628007,5.40157032,2624.9,2624.5,0.39784089]
[1730253629532,6.39876535,2624.9,2624.5,3.95808089]
[1730253630399,2.58906535,2624.9,2624.5,3.95808089]
[1730253634614,0.08687075,2624.9,2624.5,3.95808089]
[1730253634994,0.08687075,2624.9,2624.7,0.8285]
[1730253635200,0.08687075,2624.9,2624.7,4.63838]
[1730253635727,0.59615562,2625.4,2624.7,4.71454629]
[1730253635728,0.08684418,2624.8,2624.7,4.71454629]
[1730253635884,0.08684418,2624.8,2624.7,5.63151146]
[1730253636085,1.50499957,2625.6,2625.1,3.80933]
[1730253636390,0.08684902,2625.5,2625.2,0.8285]
[1730253637228,0.08684902,2625.5,2625.2,4.63772]
[1730253637431,0.08684902,2625.5,2625.2,0.8285]
[1730253638432,0.08684902,2625.5,2625.3,3.80903]
[1730253638738,0.7652,2625.7,2625.3,3.80903]
[1730253638739,4.57371,2625.7,2625.3,3.80907]
[1730253638937,0.08694802,2625.4,2625.3,3.80907]
[1730253639160,4.57371,2625.7,2625.3,3.80907]
[1730253639369,0.08694802,2625.4,2625.3,3.80907]
[1730253639654,4.57371,2625.7,2625.3,3.80907]
[1730253640237,0.08694802,2625.6,2625.3,3.80907]
[1730253640560,0.08694802,2625.6,2625.2,4.63766]
[1730253640722,0.08694802,2625.6,2625.3,3.80908]
[1730253641147,0.08694802,2625.6,2625.3,3.809]
[1730253641633,0.08694802,2625.6,2625.2,4.63765]
[1730253641854,5.31344957,2625.8,2625.2,4.63765]
[1730253642256,3.89548802,2625.7,2625.2,5.101415]
[1730253643155,0.08694802,2625.7,2625.2,8.910555]
[1730253643657,0.08694802,2625.7,2625.3,3.80906]
[1730253643865,5.31344957,2625.8,2625.3,3.80906]
[1730253644036,0.08694802,2625.7,2625.3,4.7001065]
[1730253644251,9.12192957,2625.8,2625.3,0.8910465]
[1730253644452,0.08694802,2625.7,2625.3,4.7001265]
[1730253644651,9.12191957,2625.8,2625.3,4.7001265]
[1730253644867,0.08694802,2625.7,2625.3,4.7001265]
[1730253645393,5.31344957,2625.8,2625.3,4.7001265]
[1730253645877,0.08694802,2625.7,2625.3,4.7001265]
[1730253646182,9.12191957,2625.8,2625.3,4.7001265]
[1730253646477,0.08694802,2625.6,2625.3,4.7001265]
[1730253646771,9.12191957,2625.8,2625.3,4.7001265]
[1730253646978,0.7779,2625.4,2625.1,3.80937]
[1730253647138,0.7779,2625.4,2624.6,0.39778671]
[1730253647139,3.80995,2624.7,2624.6,0.39778671]
[1730253647338,6.09284957,2624.7,2624.1,0.28023991]
[1730253647541,6.09284957,2624.7,2624.1,5.0356233]
[1730253647867,0.08720389,2624.6,2624.1,5.0356233]
[1730253648066,0.08720389,2624.6,2624.2,4.09085991]
[1730253648374,0.08720389,2624.6,2624.1,4.75546339]
[1730253648743,0.08720389,2624.6,2624.1,5.0357033]
[1730253649047,0.08720389,2624.6,2624.2,0.88466633]
[1730253649257,0.08720389,2624.6,2624.2,4.69531633]
[1730253650385,0.08720389,2624.6,2624.3,4.64401947]
[1730253650682,0.08720389,2624.6,2624.4,3.81032]
[1730253650838,4.58765,2624.9,2624.3,4.56793]
[1730253651044,3.89704389,2624.8,2624.3,5.77468676]
[1730253651278,3.89704389,2624.8,2624.3,5.49425563]
[1730253651481,3.89704389,2624.8,2624.3,4.56793]
[1730253652421,3.05891081,2624.7,2624.3,4.56793]
[1730253652728,3.80984,2624.8,2624.3,4.56793]
[1730253652912,0.08701799,2624.6,2624.3,4.56793]
[1730253653230,3.80984,2624.8,2624.3,4.56793]
[1730253653432,3.80984,2624.8,2624.2,0.28043617]
[1730253653433,0.08682969,2624.5,2624.2,0.28043617]
[1730253653597,3.81083,2624.1,2624.0,0.28043617]
[1730253653799,3.81083,2624.1,2623.6,1.18053595]
[1730253653800,3.81099,2624.0,2623.6,1.03786564]
[1730253654012,0.08682246,2624.1,2623.6,1.03786564]
[1730253654187,3.81068,2624.2,2623.6,0.7574]
[1730253654396,0.08682246,2624.0,2623.6,0.7574]
[1730253654698,0.08682246,2623.9,2623.6,4.56888]
[1730253655125,3.81093,2624.1,2623.6,4.56888]
[1730253655436,0.08676209,2623.8,2623.6,4.56888]
[1730253655630,3.81093,2624.1,2623.6,4.56888]
[1730253655791,0.08676209,2623.7,2623.6,4.56888]
[1730253655992,3.81093,2624.1,2623.6,4.56888]
[1730253656296,0.08676209,2623.7,2623.6,4.56888]
[1730253656502,7.62148,2624.2,2623.6,4.84934564]
[1730253656699,3.89756136,2624.1,2623.6,4.84934564]
[1730253657008,0.08671136,2624.1,2623.6,4.84934564]
[1730253657216,0.08671136,2624.1,2623.6,4.56888]
[1730253657805,0.08671136,2624.1,2623.7,3.81139]
[1730253658697,3.89761136,2624.1,2623.6,0.7574]
[1730253658999,3.89756136,2624.1,2623.7,3.81138]
[1730253659641,3.89756136,2624.1,2623.6,4.56893]
[1730253660650,3.05891081,2623.9,2623.5,3.81161]
[1730253660965,0.08658818,2623.8,2623.5,3.81161]
[1730253661279,0.08658818,2623.8,2623.4,0.7814]
[1730253661438,0.08658818,2623.8,2623.5,3.8117]
[1730253661631,3.89784818,2623.8,2623.3,3.81188]
[1730253661835,3.81141,2623.7,2623.2,4.99136902]
[1730253662030,8.3944159,2623.8,2623.2,4.99136902]
[1730253662355,0.08655194,2623.7,2623.3,3.81196]
[1730253662868,0.08655194,2623.7,2623.4,3.81183]
[1730253663163,4.57206,2624.0,2623.4,3.81183]
[1730253663367,0.08649154,2623.6,2623.4,3.81183]
[1730253663546,8.38312,2624.0,2623.4,3.81183]
[1730253663745,0.08645288,2623.5,2623.4,3.81183]
[1730253663932,4.57206,2624.0,2623.4,3.81183]
[1730253664133,0.08645046,2623.5,2623.4,3.81183]
[1730253664359,3.81128,2623.8,2623.3,3.81196]
[1730253664588,0.08645046,2623.5,2623.3,7.62386]
[1730253664894,8.38316,2624.0,2623.4,3.81184]
[1730253665103,3.81115,2623.9,2623.4,3.81184]
[1730253665257,4.57206,2624.0,2623.5,3.81168]
[1730253665457,0.761,2624.3,2623.9,3.811]
[1730253665658,0.761,2624.3,2623.9,3.81098]
[1730253665962,4.57125,2624.5,2624.0,3.81085]
[1730253666187,4.57125,2624.5,2624.0,4.59225]
[1730253666403,4.57125,2624.5,2624.1,3.81082]
[1730253666899,4.57125,2624.5,2624.0,0.7814]
[1730253667200,4.57125,2624.5,2624.0,4.59237]
[1730253667558,4.57125,2624.5,2624.0,4.5923]
[1730253668295,3.81039,2624.4,2624.0,0.7814]
[1730253668704,3.81055,2624.3,2624.0,0.7814]
[1730253668869,3.81055,2624.3,2623.7,7.62264]
[1730253668870,0.761,2624.2,2623.7,3.81132]
[1730253669074,4.57141,2624.4,2623.9,3.81103]
[1730253669271,0.761,2624.4,2623.9,3.81103]
[1730253669589,0.761,2624.4,2623.9,4.192133]
[1730253670199,0.761,2624.4,2624.0,3.81092]
[1730253670858,0.761,2624.4,2623.9,4.973523]
[1730253671876,0.761,2624.4,2624.0,3.81093]
[1730253672075,0.761,2624.4,2623.9,1.162503]
[1730253672287,3.81061,2624.3,2623.7,7.6226]
[1730253672462,3.81061,2624.3,2623.7,8.404]
[1730253672659,3.05891081,2624.3,2623.7,0.7814]
[1730253672874,4.57198,2624.0,2623.5,3.81161]
[1730253673072,3.81119,2623.9,2623.4,0.7814]
[1730253673274,1.599289,2624.0,2623.4,0.7814]
[1730253673493,5.410309,2624.0,2623.5,3.81169]
[1730253673973,5.410309,2624.0,2623.5,7.6233]
[1730253674296,5.410309,2624.0,2623.5,3.81161]
[1730253674489,1.599289,2624.0,2623.5,3.81161]
[1730253674695,0.761,2624.0,2623.5,7.62323]
[1730253675333,0.761,2624.0,2623.5,3.81161]
[1730253675626,0.761,2624.0,2623.6,3.81144]
[1730253675796,0.761,2624.0,2623.5,3.81161]
[1730253675996,0.761,2624.0,2623.5,7.62324]
[1730253676205,0.761,2624.0,2623.6,3.81153]
[1730253677630,0.761,2624.0,2623.5,3.81161]
[1730253677631,7.63099081,2624.0,2623.5,3.81161]
[1730253677830,0.761,2624.0,2623.5,3.81158]
[1730253678049,0.761,2624.1,2623.7,3.81139]
[1730253678237,0.0836042,2623.9,2623.7,3.81139]
[1730253678398,0.761,2624.1,2623.8,3.81126]
[1730253678598,0.761,2624.1,2623.6,3.81155]
[1730253678904,0.761,2624.1,2623.7,3.81137]
[1730253679802,4.57162,2624.3,2623.8,4.59266]
[1730253681020,8.38226,2624.3,2623.8,4.59266]
[1730253681205,4.57162,2624.3,2623.8,4.59266]
[1730253681606,3.8107,2624.2,2623.8,4.59266]
[1730253681854,0.761,2624.3,2623.9,3.81099]
[1730253682160,0.761,2624.3,2623.9,4.73257502]
[1730253683352,4.57161,2624.3,2623.9,0.92158502]
[1730253683523,4.57161,2624.3,2623.8,4.59266]
[1730253684555,4.57161,2624.3,2623.9,3.8111]
[1730253684762,4.57161,2624.3,2623.8,4.59266]
[1730253685339,4.57161,2624.3,2623.8,8.40384]
[1730253685565,4.57161,2624.3,2623.8,4.59258]
[1730253685735,4.57161,2624.3,2623.9,3.81111]
[1730253686062,0.761,2624.5,2624.0,3.81089]
[1730253686228,0.761,2624.5,2624.1,3.81083]
[1730253687061,0.761,2624.5,2624.2,3.81067]
[1730253688660,0.761,2624.5,2624.0,3.81089]
[1730253688975,0.761,2624.5,2624.1,3.81082]
[1730253691155,3.05891081,2624.7,2624.2,4.63715]
[1730253691475,0.7976,2625.0,2624.6,3.81002]
[1730253691660,0.7976,2625.0,2624.5,0.8265]
[1730253691854,0.7976,2625.1,2624.6,8.083769]
[1730253692060,4.60708,2625.1,2624.6,4.273699]
[1730253692259,0.7976,2625.1,2624.6,4.273689]
[1730253692493,1.50552396,2624.9,2624.7,3.80992]
[1730253693070,0.07828992,2624.8,2624.7,3.80992]
[1730253693276,0.07828992,2624.8,2624.7,4.7009309]
[1730253693507,0.07828992,2624.8,2624.7,4.7009609]
[1730253694379,0.07828992,2624.8,2624.7,0.8910109]
[1730253694690,0.07828992,2624.8,2624.7,4.7009609]
[1730253694874,3.85571397,2625.1,2624.7,4.7009609]
[1730253695079,0.07835572,2625.0,2624.7,4.7009609]
[1730253695385,0.07835572,2625.0,2624.8,0.55689529]
[1730253697585,0.07835572,2625.0,2624.4,4.59731397]
[1730253697796,0.7976,2624.8,2624.4,4.59731397]
[1730253698024,0.7976,2624.8,2624.5,3.81013]
[1730253698181,0.07848727,2624.7,2624.5,3.81013]
[1730253698500,0.7976,2624.8,2624.5,3.81013]
[1730253698698,0.07848727,2624.7,2624.5,4.7335244]
[1730253698910,0.7976,2624.8,2624.5,0.9233944]
[1730253699114,0.07850919,2624.7,2624.5,4.7335744]
[1730253699318,0.7976,2624.8,2624.5,4.7335744]
[1730253699517,0.07850919,2624.7,2624.5,4.7335744]
[1730253699687,6.86758397,2625.1,2624.6,0.58008313]
[1730253699891,0.87610919,2625.0,2624.6,4.39018313]
[1730253700098,4.68572919,2625.0,2624.6,0.58008313]
[1730253700318,4.68572919,2625.0,2624.5,3.81016]
[1730253700615,0.87610919,2625.0,2624.6,3.81009]
[1730253701101,4.68574919,2625.0,2624.5,3.81016]
[1730253701302,0.87610919,2625.0,2624.5,3.81016]
[1730253701612,0.87610919,2625.0,2624.5,3.81015]
[1730253701826,4.68566919,2625.0,2624.5,7.62032]
[1730253702117,0.07850919,2624.9,2624.5,3.81015]
[1730253702682,0.07850919,2624.9,2624.3,4.63695]
[1730253702888,0.7976,2624.7,2624.3,4.43746819]
[1730253703106,0.07848971,2624.6,2624.3,8.24790819]
[1730253703309,0.07848971,2624.6,2624.3,3.81044]
[1730253703820,0.07848971,2624.6,2624.3,3.81051]
[1730253704213,0.07848971,2624.6,2624.1,5.4834179]
[1730253704214,0.07848971,2624.6,2624.1,5.4833979]
[1730253704518,0.07848971,2624.6,2624.2,3.8106]
[1730253705322,3.8103,2624.5,2624.0,3.81088]
[1730253705485,3.8103,2624.5,2623.9,4.20896344]
[1730253705486,3.81055,2624.3,2623.9,4.20896344]
[1730253705819,0.07842149,2624.2,2623.9,8.02000344]
[1730253706191,0.8061,2624.4,2623.9,8.02000344]
[1730253706388,0.8061,2624.4,2624.0,3.81097]
[1730253706389,0.07839715,2624.1,2624.0,3.81097]
[1730253706597,0.8061,2624.4,2623.9,4.20896344]
[1730253706803,0.8061,2624.4,2624.1,3.81082]
[1730253708226,0.0783338,2624.3,2624.1,3.81082]
[1730253708606,0.0783338,2624.3,2624.0,3.81096]
[1730253709111,0.0783338,2624.3,2624.1,3.81081]
[1730253709308,0.0783338,2624.3,2623.9,5.01180978]
[1730253709505,0.0783338,2624.3,2624.0,4.09170422]
[1730253710107,0.0783338,2624.3,2624.1,3.8108]
[1730253710441,0.0783338,2624.3,2624.1,7.62154]
[1730253710626,0.0783338,2624.3,2624.2,4.09142422]
[1730253710832,0.8061,2624.6,2624.4,3.81038]
[1730253711137,0.8061,2624.8,2624.4,3.81038]
[1730253712132,0.8061,2624.8,2624.4,0.28074422]
[1730253712323,0.8061,2624.8,2624.4,4.09111422]
[1730253712943,0.8061,2624.8,2624.3,3.81046]
[1730253712944,4.61591,2624.8,2624.3,3.81046]
[1730253714410,4.61591,2624.8,2624.3,7.62091]
[1730253714604,4.61591,2624.8,2624.4,0.280701]
[1730253714829,4.61591,2624.8,2624.3,5.00986618]
[1730253715207,4.61591,2624.8,2624.4,3.81039]
[1730253715611,4.61591,2624.8,2624.4,4.09107053]
[1730253715814,8.4258,2624.8,2624.3,5.00992571]
[1730253716046,4.61591,2624.8,2624.3,5.00992571]
[1730253716423,1.50580496,2624.7,2624.3,5.00992571]
[1730253717054,5.31579496,2624.7,2624.3,4.72923518]
[1730253717235,5.31579496,2624.7,2624.3,5.00990074]
[1730253718454,1.50580496,2624.7,2624.2,0.8197]
[1730253718824,0.07837277,2624.6,2624.2,4.63029]
[1730253719031,0.07837277,2624.6,2624.2,4.91091964]
[1730253719226,0.07837277,2624.6,2624.2,1.10032964]
[1730253719454,1.50580496,2624.5,2624.2,0.28062964]
[1730253719755,0.9031606,2624.4,2624.2,3.81067]
[1730253719934,0.0783606,2624.4,2624.2,4.09132544]
[1730253720354,0.0783606,2624.4,2624.2,3.81067]
[1730253721231,0.0783606,2624.4,2624.3,3.81053]
[1730253721427,0.0783606,2624.4,2624.3,4.86352884]
[1730253721749,1.50580496,2624.8,2624.4,3.81039]
[1730253722621,1.50580496,2624.8,2624.4,3.81028]
[1730253723317,0.07831673,2624.7,2624.4,3.81028]
[1730253723526,1.50580496,2624.8,2624.4,3.81028]
[1730253723749,0.07831673,2624.7,2624.4,3.81028]
[1730253723951,1.50580496,2624.8,2624.4,3.81028]
[1730253724138,0.07831673,2624.7,2624.4,3.81028]
[1730253724368,1.50580496,2624.8,2624.4,3.81028]
[1730253724646,0.07831673,2624.7,2624.4,3.81028]
[1730253725039,1.50580496,2624.8,2624.4,3.81028]
[1730253725237,0.07831673,2624.6,2624.5,4.58254]
[1730253725440,3.80959,2625.0,2624.5,4.86305393]
[1730253725441,4.63439,2625.0,2624.5,4.86305393]
[1730253725658,0.07834596,2624.6,2624.5,4.86305393]
[1730253725956,0.07834596,2624.6,2624.5,2.01647033]
[1730253726140,3.80967,2624.9,2624.5,5.82671033]
[1730253726345,0.07834596,2624.8,2624.6,0.28051393]
[1730253726724,4.63434,2625.0,2624.6,0.28051393]
[1730253726925,0.07834596,2624.9,2624.6,0.28051393]
[1730253727644,0.07834596,2624.9,2624.6,4.09061393]
[1730253727831,0.07834596,2624.9,2624.6,0.28051393]
[1730253727832,3.88802596,2624.9,2624.6,0.28051393]
[1730253728033,0.07834596,2624.9,2624.5,5.82664033]
[1730253728357,0.07834596,2624.9,2624.6,7.90061393]
[1730253728559,0.07834596,2624.9,2624.6,8.58375703]
[1730253728860,3.80957,2625.0,2624.6,4.77367703]
[1730253729023,0.07834596,2624.8,2624.6,0.28047465]
[1730253729219,3.80957,2625.0,2624.5,0.7723]
[1730253729457,0.07834596,2624.7,2624.5,4.8629682]
[1730253729654,3.80957,2625.0,2624.5,4.8629682]
[1730253729951,2.33060496,2625.1,2624.5,4.8629682]
[1730253730158,0.07834596,2625.0,2624.6,3.81003]
[1730253730525,0.07834596,2625.0,2624.6,4.0904882]
[1730253731129,0.07834596,2625.0,2624.6,3.81003]
[1730253731333,0.07834596,2625.0,2624.6,4.0904882]
[1730253731864,5.31550496,2624.9,2624.6,0.2804582]
[1730253732049,2.33060496,2624.7,2624.3,4.0909282]
[1730253732630,0.07846536,2624.6,2624.3,0.2804582]
[1730253732832,1.50580496,2624.5,2624.3,0.2804582]
[1730253733156,2.33060496,2624.7,2624.3,4.0909882]
[1730253733356,0.07846536,2624.6,2624.3,3.81053]
[1730253733735,0.07846536,2624.6,2624.3,4.0911329]
[1730253733937,0.07846536,2624.6,2624.3,3.81053]
[1730253734247,0.07846536,2624.6,2624.2,4.0912829]
[1730253734636,0.07846536,2624.6,2624.3,3.81053]
[1730253734831,0.07846536,2624.6,2624.3,7.62099]
[1730253735274,0.07846536,2624.6,2624.3,3.81046]
[1730253736174,0.07846536,2624.6,2624.3,0.2806029]
[1730253736539,0.07846536,2624.6,2624.2,3.81068]
[1730253737475,0.07846536,2624.6,2624.3,0.2807846]
[1730253738152,5.31605496,2624.5,2624.3,0.2807846]
[1730253738355,0.07835573,2624.4,2624.2,0.2807846]
[1730253738663,0.8248,2624.3,2624.2,0.2807846]
[1730253739040,0.90313623,2624.3,2624.2,0.2807846]
[1730253739680,1.58414119,2624.3,2624.1,0.39794466]
[1730253739846,1.58414119,2624.3,2624.1,0.67872926]
[1730253740182,1.58414119,2624.3,2624.1,0.39794466]
[1730253740476,1.58414119,2624.3,2624.1,0.67905941]
[1730253741642,1.58414119,2624.3,2624.1,0.39794466]
[1730253741921,6.01663631,2624.3,2624.1,0.67905941]
[1730253742042,6.01663631,2624.3,2624.1,0.39794466]
[1730253742389,5.93830008,2624.3,2624.1,0.39794466]
[1730253742682,0.07823144,2624.2,2624.1,0.39794466]
[1730253743379,1.50580496,2624.3,2624.1,0.39794466]
[1730253743582,0.07823144,2624.2,2624.1,0.39794466]
[1730253743799,1.50580496,2624.3,2624.1,0.39794466]
[1730253743958,0.07823144,2624.2,2624.1,0.39794466]
[1730253744155,1.50580496,2624.3,2624.1,0.39794466]
[1730253744361,0.07823144,2624.2,2624.1,0.39794466]
[1730253744574,1.50580496,2624.3,2624.1,0.39794466]
[1730253744774,0.07823144,2624.2,2624.1,0.39794466]
[1730253745085,0.8248,2624.4,2624.1,0.39794466]
[1730253745248,0.07823144,2624.2,2624.0,4.86426846]
[1730253745444,0.8248,2624.4,2624.0,4.86426846]
[1730253745670,0.07823144,2624.1,2624.0,4.86426846]
[1730253745862,0.8248,2624.4,2624.0,4.86426846]
[1730253746073,0.07823144,2624.1,2624.0,4.86426846]
[1730253746259,0.8248,2624.4,2624.0,4.86426846]
[1730253746450,0.07823144,2624.1,2624.0,4.86426846]
[1730253746651,0.8248,2624.4,2624.0,4.86426846]
[1730253746871,0.07823144,2624.1,2624.0,4.86426846]
[1730253747065,0.8248,2624.4,2624.0,1.05338846]
[1730253747352,1.50580496,2624.3,2624.0,1.05338846]
[1730253747568,0.07823144,2624.2,2624.0,4.86435846]
[1730253747782,1.50580496,2624.3,2624.0,4.86435846]
[1730253747949,0.07823144,2624.2,2624.0,4.86435846]
[1730253748151,1.50580496,2624.3,2624.0,4.86435846]
[1730253748354,0.07823144,2624.2,2624.0,4.86435846]
[1730253748546,0.8248,2624.4,2624.0,4.86435846]
[1730253748785,0.07823144,2624.3,2624.0,4.58327]
[1730253749090,0.07823144,2624.3,2624.0,4.86435846]
[1730253749278,0.07823144,2624.3,2624.0,4.58327]
[1730253749494,0.07823144,2624.3,2624.0,4.86435846]
[1730253749811,0.07823144,2624.3,2624.0,4.5832]
[1730253750100,0.07823144,2624.3,2624.1,0.28108846]
[1730253750336,0.07823144,2624.3,2624.1,4.09190846]
[1730253750906,5.31613496,2624.5,2624.1,0.28108846]
[1730253751110,0.07823144,2624.2,2624.0,4.58326]
[1730253751311,5.31613496,2624.5,2624.1,0.28131565]
[1730253751612,0.07823144,2624.4,2624.0,8.39414]
[1730253752671,0.07823144,2624.4,2624.0,4.58318]
[1730253752888,0.07823144,2624.4,2624.1,0.28131814]
[1730253753091,9.12646496,2624.5,2624.1,0.28131814]
[1730253753290,0.07823144,2624.3,2624.1,0.28131814]
[1730253753479,5.31612496,2624.5,2624.1,0.28131814]
[1730253753697,0.07823144,2624.2,2624.1,0.28131814]
[1730253754211,0.07823144,2624.2,2623.9,0.28131814]
[1730253754212,3.81091,2624.1,2623.9,0.28131814]
[1730253754513,5.31671496,2624.1,2623.7,0.28131814]
[1730253754826,0.07821683,2624.0,2623.7,0.28131814]
[1730253755119,0.07821683,2624.0,2623.6,3.81145]
[1730253755269,0.07821683,2624.0,2623.6,4.09285473]
[1730253755476,0.07821683,2624.0,2623.7,4.09279473]
[1730253755669,0.07821683,2624.0,2623.7,3.81139]
[1730253755876,0.07821683,2624.0,2623.7,4.09279473]
[1730253756511,0.07821683,2624.0,2623.7,0.28140473]
[1730253756878,0.07821683,2624.0,2623.6,4.09294473]
[1730253757782,0.07821683,2624.0,2623.7,3.81141]
[1730253761490,0.07821683,2624.0,2623.7,0.28110298]
[1730253762283,0.07821683,2624.0,2623.7,4.09249298]
[1730253762496,0.07821683,2624.0,2623.7,0.28110298]
[1730253763624,0.07821683,2624.0,2623.7,3.81136]
[1730253763796,0.07821683,2624.0,2623.8,3.81125]
[1730253763992,4.57598,2624.2,2623.8,3.81125]
[1730253764215,0.07821683,2624.1,2623.8,3.81125]
[1730253764423,0.07821683,2624.1,2623.7,5.06418924]
[1730253766451,3.88905683,2624.1,2623.7,1.25278924]
[1730253766772,0.07821683,2624.1,2623.7,3.8113]
[1730253767152,0.07821683,2624.1,2623.7,4.0923243]
[1730253768086,0.07821683,2624.1,2623.7,4.37335026]
[1730253768472,0.07821683,2624.1,2623.8,3.81125]
[1730253769358,0.07821683,2624.1,2623.7,4.37345026]
[1730253770955,5.39486179,2624.1,2623.7,0.2810243]
[1730253771186,6.39194597,2624.1,2623.6,3.81147]
[1730253771549,2.58110597,2624.1,2623.7,3.8114]
[1730253771753,0.07821683,2624.1,2623.7,4.0924243]
[1730253773783,0.07821683,2624.1,2623.8,3.81123]
[1730253774149,0.07821683,2624.1,2623.8,4.0922543]
[1730253774784,0.07821683,2624.1,2624.0,3.81097]
[1730253774960,0.7853,2624.5,2624.2,3.8106]
[1730253775163,0.07555254,2624.4,2624.2,3.8106]
[1730253775578,0.07555254,2624.4,2624.3,3.81053]
[1730253776095,0.7853,2624.7,2624.3,3.81053]
[1730253776259,0.07565041,2624.4,2624.3,3.81053]
[1730253776791,0.7853,2624.7,2624.3,3.81053]
[1730253776996,0.07565041,2624.6,2624.3,3.81053]
[1730253777282,0.07565041,2624.6,2624.3,4.09201606]
[1730253777783,0.07565041,2624.6,2624.3,3.81053]
[1730253777973,0.07565041,2624.6,2624.3,4.09200876]
[1730253778377,0.07565041,2624.6,2624.3,0.28147876]
[1730253779272,3.88579041,2624.6,2624.2,4.6246]
[1730253779480,3.88579041,2624.6,2624.2,0.814]
[1730253779702,0.07565041,2624.6,2624.2,4.90611876]
[1730253780797,3.88577041,2624.6,2624.2,1.09543395]
[1730253780993,0.7926,2624.3,2624.2,0.28143395]
[1730253781195,0.7926,2624.3,2624.1,3.81072]
[1730253781196,0.86827488,2624.3,2624.1,3.81072]
[1730253781374,0.07567488,2624.3,2624.1,4.09215395]
[1730253781576,0.07567488,2624.3,2624.1,7.90289395]
[1730253781771,0.7926,2624.5,2624.1,4.09215395]
[1730253782078,0.07569688,2624.4,2624.2,5.0240154]
[1730253782480,4.60264,2624.7,2624.3,0.28143395]
[1730253782680,5.31593496,2624.6,2624.3,0.28143395]
[1730253782875,3.81026,2624.5,2624.3,0.28143395]
[1730253783186,3.81026,2624.5,2624.2,0.28143395]
[1730253783187,0.86829199,2624.4,2624.2,0.28143395]
[1730253783507,0.86829199,2624.4,2624.0,4.09238395]
[1730253783508,0.7926,2624.4,2624.0,4.09238395]
[1730253783689,0.7926,2624.4,2624.1,0.28143395]
[1730253783884,0.07569199,2624.3,2624.1,0.28143395]
[1730253784114,1.50580496,2624.2,2624.1,0.28143395]
[1730253784314,1.50580496,2624.2,2623.8,7.6225]
[1730253784614,0.07566508,2624.2,2623.9,4.09291336]
[1730253784831,9.91931496,2624.4,2624.0,0.28182336]
[1730253784975,0.07566264,2624.1,2624.0,0.28182336]
[1730253785173,6.10884496,2624.4,2624.0,0.28182336]
[1730253785377,0.07561615,2624.3,2624.0,0.28182336]
[1730253786714,0.07561615,2624.3,2624.0,4.09274336]
[1730253786882,0.07561615,2624.3,2624.0,0.28182336]
[1730253787098,0.07561615,2624.3,2623.9,3.81109]
[1730253787296,1.50580496,2624.2,2623.7,5.40254397]
[1730253787609,0.07561859,2624.1,2623.8,0.28196871]
[1730253787812,0.86821859,2624.1,2623.9,0.28196871]
[1730253788024,0.86821859,2624.1,2623.7,4.61552]
[1730253788025,0.86821859,2624.1,2623.8,0.28196871]
[1730253788233,0.7926,2624.1,2624.0,0.28194628]
[1730253789042,0.86821859,2624.1,2624.0,0.56391499]
[1730253789198,0.86821859,2624.1,2624.0,0.28194628]
[1730253789604,0.7926,2624.1,2624.0,0.28194628]
[1730253789939,0.86821859,2624.1,2624.0,0.28194628]
[1730253790624,5.29752195,2624.1,2624.0,0.28194628]
[1730253791001,1.48669195,2624.1,2623.7,0.28196871]
[1730253791241,1.48669195,2624.1,2623.4,4.61602]
[1730253791242,5.31699496,2623.9,2623.5,0.28196871]
[1730253791406,9.12823496,2623.9,2623.5,0.28196871]
[1730253791598,0.07544483,2623.8,2623.5,0.28196871]
[1730253793248,0.07544483,2623.8,2623.6,3.81148]
[1730253793537,0.07544483,2623.8,2623.7,0.8042]
[1730253793701,4.60323,2624.3,2623.8,3.81119]
[1730253793906,4.60323,2624.3,2623.8,7.90434871]
[1730253794102,4.60323,2624.3,2623.9,4.09304871]
[1730253794503,4.60323,2624.3,2623.8,4.09321871]
[1730253794718,5.31655496,2624.2,2623.8,1.28074714]
[1730253794915,1.50580496,2624.0,2623.7,0.28196871]
[1730253795148,3.8112,2623.9,2623.5,0.28196871]
[1730253795351,1.50580496,2624.0,2623.6,0.28196871]
[1730253795547,4.60352,2624.1,2623.6,3.81142]
[1730253795749,4.60352,2624.1,2623.8,0.8042]
[1730253796157,0.7926,2624.1,2623.8,4.89737871]
[1730253796325,3.81064,2624.3,2623.8,5.76825558]
[1730253796654,1.50580496,2624.2,2623.9,4.09307871]
[1730253796814,6.10887496,2624.4,2623.9,3.81111]
[1730253797015,6.10887496,2624.4,2623.9,4.09307871]
[1730253797450,6.10887496,2624.4,2623.9,4.09291634]
[1730253797717,6.10887496,2624.4,2623.9,3.81111]
[1730253798256,0.07543259,2624.3,2623.9,4.09290599]
[1730253798413,0.07543259,2624.3,2623.9,4.09292981]
[1730253798855,1.50580496,2624.2,2623.9,4.09292981]
[1730253799152,0.07543259,2624.3,2624.2,3.81068]
[1730253799319,0.7926,2624.6,2624.2,3.81068]
[1730253799520,0.7926,2624.6,2624.3,3.81052]
[1730253799717,1.50580496,2624.7,2624.3,4.6811969]
[1730253800114,5.31576496,2624.7,2624.3,4.96302586]
[1730253800316,1.50580496,2624.7,2624.3,4.6811969]
[1730253800527,4.60238,2624.9,2624.5,4.61434]
[1730253800528,2.29840496,2624.9,2624.5,4.61434]
[1730253801464,0.7926,2624.9,2624.6,3.81009]
[1730253801689,1.50580496,2625.0,2624.6,3.81009]
[1730253801990,5.31537496,2625.0,2624.5,4.61444]
[1730253802404,3.80966,2624.9,2624.5,0.8042]
[1730253803088,1.50580496,2625.0,2624.5,0.8042]
[1730253803286,3.80951,2625.1,2624.5,5.16295469]
[1730253803604,3.80951,2625.1,2624.6,3.81001]
[1730253805920,2.29840496,2625.2,2624.6,3.81001]
[1730253806110,6.10764496,2625.2,2624.7,3.80985]
[1730253807522,2.29840496,2625.2,2624.8,0.8042]
[1730253807811,1.50580496,2625.2,2624.8,0.8042]
[1730253807971,4.4054578,2625.3,2624.9,0.8042]
[1730253807972,0.5962978,2625.3,2624.9,0.8042]
[1730253808251,5.31447496,2625.6,2625.1,3.8093]